Cogmind - Beta 16 --- EXPLORER MODE // 2026.01.21 @ 12:55:08 Player: K.K.Y. Result: Destroyed by H-55 Commando with Gauss Rifle Performance ------------- Evolutions (0) 0 Regions Visited (4) 800 Robots Destroyed (48) 240 Value Destroyed (1039) 1039 Prototype IDs (0) 0 Alien Tech Used (0) 0 Bonus (1727) 1727 TOTAL SCORE: 3806 Bonus ------- Delivered SUBCON Basin 2000 Friendly Fire -273 Cogmind --------- Core Integrity 0/250 Matter 300/300 Energy 100/100 System Corruption 1% Temperature Cool (0) Movement Treading (260) Ox1 Location -9/Recycling Parts ------- > --- POWER (1) -------- (None) > --- PROPULSION (2) --- Spiked Treads > --- UTILITY (3) ------ Large Storage Unit > --- WEAPON (2) ------- Medium Laser Makeshift Sword > --- INVENTORY (15) --- Improved Heat Sink Huge Storage Unit Light Humpback Machine Analyzer Experimental Sensor Array Improved Signal Interpreter Improved Terrain Scanner Transport Network Coupler Hardened Medium Armor Plating Hardened Medium Armor Plating System Shield Tech Extrapolator Peak State ------------ > --- POWER ------------ Makeshift Power Source > --- PROPULSION ------- Spiked Treads Spiked Treads > --- UTILITY ---------- Light Humpback Hardened Medium Armor Plating > --- WEAPON ----------- Mining Laser Makeshift Sword > --- INVENTORY -------- Improved Heat Sink Large Storage Unit Huge Storage Unit Machine Analyzer Experimental Sensor Array Improved Signal Interpreter Improved Terrain Scanner Transport Network Coupler Hardened Medium Armor Plating System Shield SUBCON Basin [Rating: 39] Favorites ----------- Power Ion Engine Engine Ion Engine Power Core Light Nuclear Core Propulsion Light Treads Treads Light Treads Utility Structural Scanner Device Structural Scanner Storage Large Storage Unit Protection Hardened Medium Armor Plating Weapon Medium Laser Energy Gun Medium Laser Special Weapon Mining Laser Slashing Weapon Makeshift Sword Build | -11 -10 -10 -10 -9 ------- Run | Yrd Mat Min Sub Rec Slots Evolved 1 | . 1 . . . Power . | . . . . . Propulsion . | . . . . . Utility 1 | . 1 . . . Weapon . | . . . . . Parts Attached 26 | 6 6 1 13 . Power 5 | 1 1 . 3 . Engine 3 | 1 1 . 1 . Core 2 | . . . 2 . Reactor . | . . . . . Propulsion 5 | 2 . 1 2 . Treads 5 | 2 . 1 2 . Leg . | . . . . . Wheel . | . . . . . Hover . | . . . . . Flight . | . . . . . Utility 11 | 1 4 . 6 . Device 6 | 1 2 . 3 . Storage 3 | . 2 . 1 . Processor . | . . . . . Hackware . | . . . . . Protection 2 | . . . 2 . Artifact . | . . . . . Weapon 5 | 2 1 . 2 . Energy Gun 3 | 2 . . 1 . Energy Cannon . | . . . . . Ballistic Gun . | . . . . . Ballistic Cannon . | . . . . . Launcher . | . . . . . Special Weapon 1 | . 1 . . . Impact Weapon . | . . . . . Slashing Weapon 1 | . . . 1 . Piercing Weapon . | . . . . . Special Melee Weapon . | . . . . . Unidentified Prototypes . | . . . . . Parts Lost 3 | . . . 1 2 Power 1 | . . . . 1 Propulsion 1 | . . . . 1 Utility 1 | . . . 1 . Weapon . | . . . . . Highest Loss Streak 1 | . . . 1 1 To Critical Strikes . | . . . . . Average Backups 11 | 2 6 12 13 10 Power . | . 1 2 . . Propulsion . | . . . . . Utility 8 | 1 4 9 10 10 Weapon 1 | . 1 1 1 . Tool/Special . | . . . . . Unused Backups 11 | . . 3 . 8 Power . | . . . . . Propulsion . | . . . . . Utility 11 | . . 3 . 8 Weapon . | . . . . . Tool/Special . | . . . . . Average Slot Usage (%) 93 | . 93 100 97 73 Engine 8 | . 12 12 7 2 Core 2 | . . . 4 . Treads 24 | . 24 25 25 24 Device 15 | . 22 25 14 . Storage 11 | . 9 12 12 12 Protection 4 | . . . 6 8 Energy Gun 20 | . 24 25 19 12 Special Weapon 1 | . . . 2 . Slashing Weapon 2 | . . . 2 12 Peak Build Rating 39 | 6 9 12 39 39 Average Rating 17 | 5 8 10 21 29 On Entrance 13 | . 6 8 12 39 Avg Prop Armor Cover (%) . | . . . . . Naked Turns . | . . . . . Heaviest Build 56 | 8 31 31 56 56 Greatest Support 40 | 40 40 40 40 40 Greatest Overweight (x) 1 | 1 1 . 1 1 Average Overweight (x) . | . . . . . Largest Inventory Capacity 25 | 5 15 15 25 25 Average Capacity 15 | 5 11 15 16 22 Most Carried 25 | 5 10 15 25 25 Average Carried 14 | 2 7 12 16 21 Final Capacity 25 | 5 15 15 25 15 Final Carried 25 | 4 10 15 25 13 Class Distribution -------------------- 88% | Hacker-Mutant 11% | Derelict-Mutant Dominant Class ---------------- Hacker-Mutant | -10/Materials Hacker-Mutant | -10/Mines Hacker-Mutant | -10/Subcaves Hacker-Mutant | -9/Recycling Resources | -11 -10 -10 -10 -9 ----------- Run | Yrd Mat Min Sub Rec Matter Collected 590 | 260 70 20 126 114 Remotely . | . . . . . Salvage Created 1603 | 233 598 90 473 209 Parts 95 | 21 26 5 25 18 Haulers Intercepted 2 | . 2 . . . Recyclers Shooed 3 | . 3 . . . Parts Field Recycled . | . . . . . Retrieved Matter . | . . . . . Parts Self-Destructed . | . . . . . Prevented . | . . . . . Parts Restored . | . . . . . Kills | -11 -10 -10 -10 -9 ------- Run | Yrd Mat Min Sub Rec Combat Hostiles Destroyed 28 | . 8 2 13 5 Melee 4 | . . . . 4 Guns 23 | . 7 2 13 1 Classes Destroyed 12 | 2 6 . 3 1 Builder 2 | . 2 . . . Tunneler 7 | 7 . . . . Hauler 2 | . 2 . . . Recycler 2 | 1 1 . . . Mechanic 1 | . 1 . . . Turret 2 | . . . 2 . Watcher 3 | . 3 . . . Swarmer 11 | . 2 2 6 1 Grunt 6 | . 6 . . . Sentry 4 | . . . 1 3 Programmer 1 | . . . . 1 Subdweller 6 | . . . 6 . Thug 1 | . . 1 . . Best Kill Streak 6 | 6 4 2 3 2 Combat Bots Only 3 | . 3 2 2 2 Max Kills in Single Turn 2 | 2 2 1 1 1 Gunslinging . | . . . . . Exploded . | . . . . . Melee 1 | . . . . 1 Uniques/NPCs Destroyed . | . . . . . Combat | -11 -10 -10 -10 -9 -------- Run | Yrd Mat Min Sub Rec Hostile Shots Fired 200 | . 34 4 112 50 Missed 69 | . 11 2 44 12 Hits 131 | . 23 2 68 38 Projectile 131 | . 23 2 68 38 Critical Strikes 3 | . 1 . . 2 Damage Taken 1131 | . 184 9 615 323 Core 251 | . 46 . 135 70 Absorbed by Shields . | . . . . . Ignored by Resistances 704 | . 117 6 386 195 Core Remaining (%) 100 | 100 . . . . Volleys Fired 141 | 8 57 10 62 4 Largest 2 | 2 2 2 2 1 Hottest 150 | 100 150 100 150 50 Shots Fired 275 | 16 114 20 121 4 Gun 265 | 16 113 20 112 4 Cannon . | . . . . . Launcher . | . . . . . Special 10 | . 1 . 9 . Kinetic . | . . . . . Thermal 275 | 16 114 20 121 4 Explosive . | . . . . . Electromagnetic . | . . . . . Robot Hit Streak 48 | 12 48 32 31 12 Robot Miss Streak 1 | 1 1 1 1 . Penetration Max . | . . . . . Secondary Targets 4 | . . 1 3 . Max Gunslinging Chain 1 | . . 1 1 . Shots Hit Robots 228 | 12 99 17 88 12 Core Hits 76 | 9 29 6 27 5 Critical Kills . | . . . . . Critical Parts Destroyed . | . . . . . Critical Strikes 21 | 1 10 1 9 . Burn 21 | 1 10 1 9 . Melee Attacks 11 | . . . 1 10 Impact . | . . . . . Slashing 11 | . . . 1 10 Piercing . | . . . . . Sneak Attacks 2 | . . . . 2 Combat Hostiles . | . . . . . Follow-up Attacks . | . . . . . Damage Inflicted 3148 | 164 1252 209 1101 422 Guns 2739 | 164 1252 209 1077 37 Cannons . | . . . . . Explosions . | . . . . . Melee 385 | . . . . 385 Ramming . | . . . . . Kinetic . | . . . . . Thermal 2763 | 164 1252 209 1101 37 Explosive . | . . . . . Electromagnetic . | . . . . . Impact . | . . . . . Slashing 385 | . . . . 385 Piercing . | . . . . . Highest Corruption 1 | . . . . 1 Average Corruption 1 | . . . . 1 Corruption Purged . | . . . . . Corruption Blocked . | . . . . . Overload Shots . | . . . . . Overflow Damage 47 | . . . . 47 Projectiles . | . . . . . Explosions . | . . . . . Melee 47 | . . . . 47 Knockbacks . | . . . . . Impact . | . . . . . Kinetic . | . . . . . Secondary . | . . . . . Self-Inflicted Damage . | . . . . . Shots . | . . . . . Rammed . | . . . . . Targets Rammed . | . . . . . Kicked . | . . . . . Crushed . | . . . . . Highest Temperature 306 | 117 306 156 210 10 Average Temperature 82 | 44 103 56 43 7 Received Heat Transfer 576 | . 159 . 384 33 Effects 1 | . 1 . . . Energy Bleed 1 | . 1 . . . Siege Activations . | . . . . . Martial Activations . | . . . . . Shielding Activations . | . . . . . Robots Disrupted . | . . . . . Combat Hostiles . | . . . . . Robots Corrupted . | . . . . . Combat Hostiles . | . . . . . Parts Fried . | . . . . . Impact Corruptions . | . . . . . Robots Melted 1 | . 1 . . . Combat Hostiles 1 | . 1 . . . Parts Melted 15 | 1 10 . 3 1 Heat Transferred 9633 | 555 4440 703 3824 111 Parts Sabotaged . | . . . . . Parts Stolen . | . . . . . Parts Stripped . | . . . . . Power Chain Reactions . | . . . . . Alert | -11 -10 -10 -10 -9 ------- Run | Yrd Mat Min Sub Rec Maximum Alert Level . | . . . . . Low Security (%) 100 | 100 100 100 . 100 Level 1 . | . . . . . Level 2 . | . . . . . Level 3 . | . . . . . Level 4 . | . . . . . Level 5 . | . . . . . High Security . | . . . . . Max Security . | . . . . . Peak Influence 71 | 10 71 50 . 25 Initial 4 | . 4 . . . Average 2 | 2 4 2 . . Influence Increases 705 | 40 280 50 235 100 Destroy 0b10 Robot/C 480 | . 160 40 180 100 Destroy 0b10 Robot/NC 85 | 40 45 . . . Destroy Leader 70 | . 50 10 10 . Successful Hack 4 | . 4 . . . Disable Machine 4 | . 4 . . . Destroy Structure 2 | . 2 . . . Lose Combat Pursuer 60 | . 15 . 45 . Influence Decreases 705 | 30 290 50 235 100 Entered New Map 6 | . 6 . . . Time Decay 689 | 30 284 50 235 90 Lost Part 10 | . . . . 10 Squads Dispatched 3 | . 2 1 . . Investigation 3 | . 2 1 . . Extermination . | . . . . . Reinforcement . | . . . . . Assault . | . . . . . Garrison . | . . . . . Intercept . | . . . . . Searches Triggered . | . . . . . Construction Impeded . | . . . . . Haulers Reinforced . | . . . . . Active Scanning Responses . | . . . . . Cargo Convoy Interrupts . | . . . . . Stealth | -11 -10 -10 -10 -9 --------- Run | Yrd Mat Min Sub Rec Distress Signals 1 | . 1 . . . Communications Jammed . | . . . . . Distress Signals . | . . . . . Times Spotted 38 | . 17 2 13 6 Peak Tracking Total 5 | . 5 1 4 3 Tactical Retreats 3 | . 1 . 2 . Traps | -11 -10 -10 -10 -9 ------- Run | Yrd Mat Min Sub Rec Traps Triggered 3 | . 3 . . . Indirectly . | . . . . . Trap Hack Attempts . | . . . . . Triggered . | . . . . . Disarmed . | . . . . . Reprogrammed . | . . . . . Reused . | . . . . . Traps Extracted . | . . . . . Installed . | . . . . . Triggered . | . . . . . Machines | -11 -10 -10 -10 -9 ---------- Run | Yrd Mat Min Sub Rec Machines Disabled 1 | . 1 . . . Max in Single Turn 1 | . 1 . . . Machines Repaired . | . . . . . Machines Dismantled . | . . . . . Machines Sabotaged . | . . . . . Overloaded Fab Kills . | . . . . . Hacking | -11 -10 -10 -10 -9 --------- Run | Yrd Mat Min Sub Rec Machines Accessed 12 | . 8 1 3 . Terminals 6 | . 6 . . . Fabricators . | . . . . . Repair Stations . | . . . . . Recycling Units 2 | . 2 . . . Scanalyzers . | . . . . . Garrison Access . | . . . . . Total Hacks 24 | . 17 1 6 . Successful 15 | . 8 1 6 . Failed 9 | . 9 . . . Catastrophic . | . . . . . Database Lockouts . | . . . . . Manual 24 | . 24 . . . Terminals 12 | . 12 . . . Fabricators . | . . . . . Repair Stations . | . . . . . Recycling Units 5 | . 5 . . . Scanalyzers . | . . . . . Garrison Access . | . . . . . Terminal Hacks 10 | . 3 1 6 . Record 4 | . . . 4 . Part Schematic 2 | . 2 . . . Robot Schematic 1 | . 1 . . . Open Door 2 | . . 1 1 . Release Object 1 | . . . 1 . Fabricator Hacks . | . . . . . Repair Station Hacks . | . . . . . Recycling Unit Hacks 2 | . 2 . . . Retrieve Components 2 | . 2 . . . Scanalyzer . | . . . . . Garrison Access Hacks . | . . . . . Unauthorized Hacks 3 | . 3 . . . Terminals 2 | . 2 . . . Botnet 2 | . 2 . . . Fabricators . | . . . . . Repair Stations . | . . . . . Recycling Units 1 | . 1 . . . Reject 1 | . 1 . . . Scanalyzers . | . . . . . Garrison Access . | . . . . . Data Cores Recovered . | . . . . . Used . | . . . . . Hacking Detections 6 | . 6 . . . Full Trace Events 3 | . 3 . . . Feedback Events . | . . . . . Feedback Blocked . | . . . . . Robot Schematics Acquired 1 | . 1 . . . Robots Built . | . . . . . Authchips . | . . . . . Time . | . . . . . Total Robot Build Rating . | . . . . . Part Schematics Acquired 2 | . 2 . . . Parts Built . | . . . . . Authchips . | . . . . . Time . | . . . . . Total Part Build Rating . | . . . . . Part Studies Acquired . | . . . . . Parts Repaired . | . . . . . Time . | . . . . . Parts Recycled . | . . . . . Recycled Matter . | . . . . . Retrieved Matter . | . . . . . Retrieved Components 10 | . 10 . . . Parts Scanalyzed . | . . . . . Part Schematics Acquired . | . . . . . Parts Damaged . | . . . . . Bothacking | -11 -10 -10 -10 -9 ------------ Run | Yrd Mat Min Sub Rec Used RIF Installer . | . . . . . Robots Hacked . | . . . . . Non-combat . | . . . . . Combat . | . . . . . Robot Hacks Applied . | . . . . . Relay Couplers Released . | . . . . . Fabnet Peak Effective % . | . . . . . Robots Rewired . | . . . . . Allies Hacked . | . . . . . Hacks Repelled . | . . . . . Allies | -11 -10 -10 -10 -9 -------- Run | Yrd Mat Min Sub Rec Total Allies . | . . . . . Largest Group . | . . . . . Highest-Rated Group . | . . . . . Highest-Rated Ally . | . . . . . Total Orders . | . . . . . Ally Attacks . | . . . . . Total Damage . | . . . . . Kills . | . . . . . Allies Corrupted . | . . . . . Allies Melted . | . . . . . Intel | -11 -10 -10 -10 -9 ------- Run | Yrd Mat Min Sub Rec Active Infowar (turns) 6118 | 190 1939 955 3034 . Sensors 4542 | 190 1939 955 1458 . Terrain 1 | . . . 1 . Structural 5598 | . 1610 955 3033 . Robot Analysis Total . | . . . . . Derelict Logs Recovered 2 | . . 1 1 . Drone Launches . | . . . . . Drone Recoveries . | . . . . . Exploration | -11 -10 -10 -10 -9 ------------- Run | Yrd Mat Min Sub Rec Turns Passed 7957 | 213 1939 955 3712 1138 Spaces Moved 4083 | 56 1055 555 1930 487 Core 13 | 13 . . . . Treads 4070 | 43 1055 555 1930 487 Legs . | . . . . . Wheels . | . . . . . Hover . | . . . . . Flight . | . . . . . Fastest Speed 50 | 50 160 160 160 160 Average Speed 174 | 141 164 160 173 225 Slowest Speed 260 | 160 240 160 260 260 Overloaded Moves . | . . . . . Propulsion Burnouts . | . . . . . Robots Hopped . | . . . . . Potential Cave-ins . | . . . . . Cave-ins Triggered . | . . . . . Exploration Rate (%) 72 | 4 97 98 79 86 Regions Visited 4 Branch Regions 3 Pre-discovered Areas 1 | . . . 1 . Known Exits Taken 4 | 1 1 1 1 . Unknown Exits Taken . | . . . . . Scrap Searched 12 | . . . 12 . Spaces Dug 4 | . . . 4 . Terrain Destroyed 4 | . . . 4 . Melee . | . . . . . Projectile 4 | . . . 4 . AOE . | . . . . . Terrain Rammed . | . . . . . Walls Destroyed . | . . . . . Machines Disabled . | . . . . . Actions | -11 -10 -10 -10 -9 --------- Run | Yrd Mat Min Sub Rec Total 4596 | 173 1140 606 2162 515 Wait 267 | 95 10 26 126 10 Move 4079 | 55 1054 554 1929 487 Hop . | . . . . . Pick Up 31 | 9 9 10 2 1 Fast Attach 4 | 1 1 . 2 . Attach 13 | 5 1 1 6 . Detach 6 | . . . 5 1 Swap 23 | . 5 1 16 1 Drop 21 | . 3 4 13 1 Fire 141 | 8 57 10 62 4 Melee 11 | . . . 1 10 Ram . | . . . . . Kick . | . . . . . Crush . | . . . . . Escape Stasis . | . . . . . Rewire . | . . . . . Trap . | . . . . . Miscellaneous . | . . . . . Route ------- -11/Scrapyard -10/Materials (discovered 4 exits: *Mat x2 / *Min x2) -10/Mines (discovered 4 exits: *Mat x2 / *Exi / *Sub) -10/Subcaves (discovered 3 exits: *Mat x2 / *Rec) -9/Recycling (discovered 1 exit: *Fac) History --------- Turn | Location | Event 17 | -11/Scrapyard | Identified exit to Materials 17 | -11/Scrapyard | Discovered exit to Materials (range 16) 214 | -11/Scrapyard | Entered Materials 214 | -10/Materials | Evolved 1 slot: Utility x1 317 | -10/Materials | Build established: Hacker-Mutant 755 | -10/Materials | Identified exit to Mines 755 | -10/Materials | Discovered exit to Mines (range 9) 928 | -10/Materials | Identified exit to Materials 928 | -10/Materials | Discovered exit to Materials (range 7) 1135 | -10/Materials | Discovered exit to Mines (range 16) 1385 | -10/Materials | Discovered exit to Materials (range 8) 2153 | -10/Materials | Entered Mines 2164 | -10/Mines | Met a Derelict bent on vengeance 2167 | -10/Mines | Discovered exit to Materials (range 6) 2185 | -10/Mines | Discovered exit to Materials (range 15) 2340 | -10/Mines | Learned location of 1 exit from Materials 2558 | -10/Mines | Met a Derelict shopkeep closing up shop 2622 | -10/Mines | Deemed a non-threat by the Exiles lab entrance 2622 | -10/Mines | Identified exit to Exiles 2622 | -10/Mines | Discovered exit to Exiles (range 5) 2705 | -10/Mines | Found a damaged Exp. Sensor Array with a note attached 2710 | -10/Mines | Found Prototype Device 2928 | -10/Mines | A weapon hastily lodged in a ceiling crevice suddenly fell to the ground 2948 | -10/Mines | Identified exit to Subcaves 2948 | -10/Mines | Discovered exit to Subcaves (range 12) 3108 | -10/Mines | Entered Subcaves 3209 | -10/Subcaves | Visited Clippyterm 3214 | -10/Subcaves | Learned Research security intel 3460 | -10/Subcaves | Shifting Twisted Machinery released Sub. Power Source 3501 | -10/Subcaves | Shifting Twisted Machinery released Battle Cannon 3522 | -10/Subcaves | Shifting Twisted Machinery released Spk. Treads 3529 | -10/Subcaves | Shifting Twisted Machinery released Sub. Laser 3960 | -10/Subcaves | Identified exit to Recycling 3960 | -10/Subcaves | Discovered exit to Recycling (range 14) 4055 | -10/Subcaves | A swath of the cavern ceiling suddenly collapsed 4506 | -10/Subcaves | Core integrity fell below 50% 4875 | -10/Subcaves | Identified exit to Materials 4875 | -10/Subcaves | Discovered exit to Materials (range 10) 6059 | -10/Subcaves | A swath of the cavern ceiling suddenly collapsed 6101 | -10/Subcaves | Discovered exit to Materials (range 7) 6155 | -10/Subcaves | Found SUBCON Basin 6432 | -10/Subcaves | Build established: Derelict-Mutant 6820 | -10/Subcaves | Entered Recycling 7101 | -9/Recycling | Identified exit to Factory 7101 | -9/Recycling | Discovered exit to Factory (range 10) 7306 | -9/Recycling | Build established: Hacker-Mutant 7577 | -9/Recycling | Scanned before Scraplab entrance 7613 | -9/Recycling | Entered Scraplab 7926 | -9/Recycling | Core integrity fell below 20% 7958 | -9/Recycling | Destroyed by H-55 Commando with Gauss Rifle Last Messages --------------- 07918_ Slug penetrates P-60 Hacker. 07920_ R-06 Scavenger collects Flight Unit. 07921_ U-05 Engineer builds a Door. 07922_ G-34 Mercenary springs to life. 07927_ Destroyed Imp. Heat Sink. 07928_ Slug penetrates Wall. 07933_ Destroyed Shock Rifle. 07933_ Mic. Nuclear Core melted. 07933_ P-60 Hacker destroyed. 07933_ R-06 Scavenger collects Remote Datajack. 07934_ Slug penetrates Wall. 07934_ Spk. Treads destroyed. 07937_ R-06 Scavenger collects Target Analyzer. 07940_ R-06 Scavenger collects Imp. Heat Sink. 07940_ Slug penetrates Wall. 07940_ Acquired 9 matter. 07940_ R-06 Scavenger collects Shock Rifle. 07942_ R-06 Scavenger collects Gravmag System. 07952_ Penetrated by Slug. Map ----- +----------------------------------------------------+ | ###?# !#???????????????????# #???????????? | | #???# %#???????????????????# #???????????? | | #???#/]= ! #???????????????????# #???????????? | | #???# #???????????????????# #???????????? | | #???# [ #???????????????????# #???????????? | | ???+ ! #??##############???# ##??????????? | | ##??# [ #??# #?### #??????????? | | #???# #??# #?# ##??????????? | | #???# %#??#%= ! #?# #???????????? | | #???# [ #??# #?# #???????????? | | #???# #??# #?# #???????????? | | ????######+##??# / [ ! #?# #???????????? | | ?????????# #???# ] [ ! #?# #???????????? | | ?????????# #???# ] #?# ####???????????? | | ?????????# #???# ! #?# #??????????????? | | ?????????# ##### #?# #??????????????? | | ???????### ## % #?# #??????????????? | | ???????#=% ## %= #?# #????##????????? | | ???????# * ########+######## ##### ##???????? | | ???????#%[ + #???????? | | ???????### ###### ########+## # #???????? | | ?????????# # # # i r# # #???????? | | ?????????# # # #!g [ u # # #???????? | | ?????????# # / +%r %# # #???????? | | ?? ????### + # #hi b # # #???????? | | ??#+#### # # #@ d # + #???????? | | ? # # #[ rl a %# # #???????? | | ?? + # # a r # # #???????? | | ??? # # # t /a # + #???????? | | ???? # # ########### # #???????? | | ???"Y"## # + #?????????# # #???????? | | ????""?# # # #?######### # #??????? | | ?????### # # #?# # #######??????? | | ?????#| + # #?# """ # #????????????? | | ?????#|| ### ## #?? """"" + #????????????? | | ?????#|| #?#### #?# """"" # #????????????? | | ######## #????# #?# """"" # #????????????? | | #????# #?# """ + #????????????? | | #????# #?# # #????????????? | | #????# #?# # #????????????? | | ########+#######??# #?# # #????????????? | | #?# #??# #?# "T" # #????????????? | | ### """ """ #??# #?# # #????????????? | | ""# """ """ #??# #?######### #????????????? | | Y"# """ """ #??# #????????## #????????????? | | ""# #??# #????????# ######???????? | | ### #??# #????????## # #???????? | | + #??# ########### # #???????? | | ################??# # ! ! # # #???????? | | #?????????????????# # |+ # #???????? | +----------------------------------------------------+ Best States ------------- Heat Dissipation 25 Energy Generation 15 Energy Capacity 250 Matter Stores 300 Matter Capacity 300 Sight Range 16 Robot Scan Range 14 Terrain Scan Density 10 Armor Coverage 225 Resistance: KI 35 Resistance: TH 35 Resistance: EX 35 Resistance: EM 35 Resistance: I 35 Resistance: S 35 Resistance: P 35 Evasion (%) 40 Recoil Reduction 2 Offensive Hacking 20 Item Schematics ----------------- Huge Storage Unit | -10/Materials | Hacked Hcp. Storage Unit | -10/Materials | Hacked Robot Schematics ------------------ G-34 Mercenary | -10/Materials | Hacked Fabricated ------------ Nothing Repaired ---------- Nothing Studied --------- None Alien Tech Used ----------------- None Achievements -------------- None Challenges ------------ None Game ------ Seed AdvancedDeepMask Manual? 0 Play Time 00:29:04 Cumulative 299.6 hours Start 2026.01.21 @ 12:22:59 End 2026.01.21 @ 12:55:08 Sessions 1 Manual Loads 0 Difficulty Explorer Special Mode None Game No. 463 Rogue 0 Adventurer 0 Explorer 463 Win Type - Total 0 Types 0/0/0/0/0/0/0/0/0/0 Lore% 76 Gallery% 70 Achievement% 55 Wizard Run 0 Options --------- Layout 1 ASCII 0 Keyboard 0 Movement Mouse Keybinds 1 Fullscreen 1 Font 24/Smallcaps Map View 50x35 Zoom Use 0% Tactical HUD 1 Map Filters NONE Filters NONE Steam 1 RUN: 1c6fa4c0-981b-4614-b653-1de3f78b0535